bitfinex/quotes_ETHUSD_20240716
["timestamp","ask_amount","ask_price","bid_price","bid_amount"]
[1721155294414,3.0,3469.2,3468.4,0.0108313]
[1721155294604,4.81244401,3469.2,3468.4,0.0108313]
[1721155294808,2.88259,3469.1,3468.4,0.0108313]
[1721155295005,2.88259,3469.1,3468.4,0.58858243]
[1721155295239,4.81310526,3469.2,3468.5,0.05765819]
[1721155295240,3.0,3469.2,3468.5,0.05765819]
[1721155295442,3.0,3469.3,3468.5,2.88307]
[1721155296309,3.0,3469.3,3468.4,0.58858243]
[1721155296508,2.88251,3469.2,3468.4,0.0108313]
[1721155296741,3.0,3469.1,3468.4,0.0108313]
[1721155297940,3.0,3469.2,3468.4,2.8939913]
[1721155298125,5.88243,3469.3,3468.4,2.8939913]
[1721155298671,7.69563346,3469.3,3468.4,2.8939913]
[1721155299006,3.0,3469.3,3468.4,2.8939913]
[1721155299211,3.0,3469.3,3468.5,0.57771613]
[1721155299444,3.0,3469.3,3468.5,3.46078613]
[1721155300519,1.81325422,3469.5,3468.7,2.88287]
[1721155300734,4.81325422,3469.6,3468.7,2.88287]
[1721155300957,1.81325422,3469.5,3468.7,2.88287]
[1721155301243,4.81325422,3469.6,3468.8,3.57484668]
[1721155301443,4.81325422,3469.6,3468.8,3.51719561]
[1721155301651,1.81325422,3469.5,3468.8,3.51719561]
[1721155301811,4.81325422,3469.6,3468.8,3.51719561]
[1721155302018,3.0,3469.6,3469.0,2.88267]
[1721155302425,5.3298,3469.7,3469.0,2.88267]
[1721155302840,2.3298,3469.7,3469.0,2.88267]
[1721155303064,5.3298,3469.7,3468.9,0.64000656]
[1721155303246,1.81349281,3469.6,3468.9,3.52272656]
[1721155303410,1.81349281,3469.6,3468.7,2.88288]
[1721155303411,4.81349281,3469.6,3468.7,2.88288]
[1721155303918,1.81349281,3469.5,3468.8,2.88282]
[1721155304113,4.81349281,3469.5,3468.8,2.88282]
[1721155304317,4.81349281,3469.5,3468.9,2.88274]
[1721155304558,3.0,3469.4,3468.9,2.88274]
[1721155304730,1.81349281,3469.5,3468.9,2.88274]
[1721155305053,1.81349281,3469.5,3468.7,2.88288]
[1721155305054,1.81349281,3469.5,3468.7,2.88285]
[1721155305217,1.81349281,3469.5,3468.8,3.22887661]
[1721155305572,1.81349281,3469.5,3468.6,2.88297]
[1721155305712,1.81349281,3469.4,3468.6,2.88297]
[1721155305912,3.0,3469.4,3468.6,2.88297]
[1721155306215,4.81404739,3469.4,3468.6,2.88293]
[1721155307038,4.81404739,3469.4,3468.4,2.8939213]
[1721155307373,6.31650799,3469.4,3468.5,2.88307]
[1721155309047,6.31687364,3469.4,3468.5,2.88307]
[1721155309218,4.65838332,3469.4,3468.5,2.88307]
[1721155309544,4.65838332,3469.4,3468.6,2.88298]
[1721155310764,1.81441304,3469.4,3468.6,2.88298]
[1721155311644,1.81441304,3469.4,3468.6,5.76592]
[1721155311831,4.81441304,3469.5,3468.6,5.76592]
[1721155312032,4.81441304,3469.5,3468.7,3.46058513]
[1721155312259,3.0,3469.5,3468.7,3.46058513]
[1721155312462,1.81518253,3469.4,3468.7,3.46058513]
[1721155312663,1.81518253,3469.4,3468.9,2.8827]
[1721155312968,1.81518253,3469.5,3468.8,2.4316]
[1721155313192,1.81518253,3469.5,3468.8,3.02081451]
[1721155313495,1.81518253,3469.4,3468.8,3.47204451]
[1721155313769,1.81518253,3469.4,3468.8,0.58921451]
[1721155314754,1.81518253,3469.3,3468.8,0.58921451]
[1721155315380,1.81518253,3469.3,3468.4,2.3225313]
[1721155315591,3.0,3469.6,3468.4,0.0108313]
[1721155315592,1.81588268,3469.1,3468.4,0.0108313]
[1721155315753,1.81604533,3469.1,3468.4,0.0108313]
[1721155316076,1.81604533,3469.0,3468.4,0.0108313]
[1721155317232,2.88277,3468.9,3468.4,0.0108313]
[1721155317436,1.81604533,3468.7,3468.4,0.0108313]
[1721155317737,1.81604533,3468.6,3468.4,0.0108313]
[1721155317939,5.88289,3468.8,3468.4,0.0108313]
[1721155317940,1.81604533,3468.5,3468.4,0.0108313]
[1721155318159,1.81604533,3468.7,3468.4,0.0108313]
[1721155318638,1.81653741,3468.7,3468.4,0.0108313]
[1721155318956,1.81652109,3468.7,3468.4,0.0108313]
[1721155319274,1.81652109,3468.6,3468.4,0.0108313]
[1721155319834,1.81652109,3468.7,3468.4,0.0108313]
[1721155320151,1.81652109,3468.8,3468.4,0.0108313]
[1721155320678,4.81652109,3468.9,3468.4,0.0108313]
[1721155321764,3.0,3469.1,3468.4,0.0108313]
[1721155322092,1.8164828,3468.9,3468.4,0.24308443]
[1721155322293,1.8164828,3468.7,3468.4,0.0108313]
[1721155323689,2.88277,3468.9,3468.4,0.0108313]
[1721155323690,1.8164828,3468.6,3468.4,0.0108313]
[1721155324689,1.8164828,3468.7,3468.4,0.0108313]
[1721155324909,1.8164828,3468.6,3468.4,0.0108313]
[1721155325109,8.20065,3468.8,3468.4,0.0108313]
[1721155325255,1.81658961,3468.7,3468.4,0.0108313]
[1721155325456,1.81658961,3468.6,3468.4,0.0108313]
[1721155326755,4.69962961,3468.6,3468.4,0.0108313]
[1721155327556,4.69967961,3468.5,3468.4,0.0108313]
[1721155327873,3.0,3468.5,3468.4,0.0108313]
[1721155328066,4.81640831,3468.5,3468.4,0.0108313]
[1721155328396,1.81640831,3468.5,3468.4,0.0108313]
[1721155328562,4.81640831,3468.5,3468.4,0.0108313]
[1721155330175,3.0,3468.5,3468.4,0.0108313]
[1721155330796,4.81640831,3468.5,3468.4,0.0108313]
[1721155331102,3.0,3468.5,3468.4,0.0108313]
[1721155331709,4.81579211,3468.5,3468.4,0.0108313]
[1721155331879,4.69879211,3468.6,3468.4,0.0108313]
[1721155332777,1.81579211,3468.5,3468.4,0.0108313]
[1721155333997,4.69879211,3468.6,3468.4,0.0108313]
[1721155334300,1.02,3468.5,3468.4,0.0108313]
[1721155334999,2.83525852,3468.5,3468.4,0.0108313]
[1721155335309,1.02,3468.5,3468.4,0.0108313]
[1721155335470,1.81525852,3468.5,3468.4,0.0108313]
[1721155335669,5.83525852,3468.7,3468.4,0.0108313]
[1721155335876,1.02,3468.7,3468.4,0.0108313]
[1721155336207,3.0,3468.9,3468.4,0.0108313]
[1721155336420,2.83525852,3469.0,3468.4,0.81781343]
[1721155336577,3.0,3468.8,3468.4,0.81781343]
[1721155336774,3.0,3468.9,3468.4,0.81781343]
[1721155337078,1.02,3468.8,3468.4,0.81781343]
[1721155337280,1.02,3468.6,3468.4,0.0108313]
[1721155338512,1.81500231,3468.7,3468.4,0.0108313]
[1721155338877,1.81500231,3468.8,3468.4,0.0108313]
[1721155341228,1.8150592,3468.7,3468.4,0.0108313]
[1721155342218,1.8150592,3468.8,3468.4,0.0108313]
[1721155342791,1.8150592,3468.7,3468.4,0.0108313]
[1721155344285,1.81498693,3468.7,3468.4,0.0108313]
[1721155346926,1.81498693,3468.8,3468.4,0.0108313]
[1721155347226,5.8828,3468.9,3468.4,0.0108313]
[1721155347227,1.81498693,3468.7,3468.4,0.0108313]
[1721155347525,1.81497819,3468.7,3468.4,0.0108313]
[1721155348141,4.69797819,3468.7,3468.4,0.0108313]
[1721155350708,4.6984752,3468.7,3468.4,0.0108313]
[1721155351236,10.0478152,3468.6,3468.4,0.0108313]
[1721155351436,2.88309,3468.5,3468.4,0.0108313]
[1721155351824,5.76618,3468.5,3468.4,0.0108313]
[1721155352024,7.8842344,3468.5,3468.4,0.0108313]
[1721155352621,5.76618,3468.5,3468.4,0.0108313]
[1721155353055,7.8842344,3468.5,3468.4,0.0108313]
[1721155353258,8.41932265,3468.5,3468.4,0.0108313]
[1721155353422,6.30126825,3468.5,3468.4,0.0108313]
[1721155353748,8.41941758,3468.5,3468.4,0.0108313]
[1721155354518,6.30126825,3468.5,3468.4,0.0108313]
[1721155355760,11.80333214,3468.5,3468.4,0.0108313]
[1721155356051,9.30126825,3468.5,3468.4,0.0108313]
[1721155357253,14.68611777,3468.5,3468.4,0.0108313]
[1721155357467,12.18435825,3468.5,3468.4,0.0108313]
[1721155357753,14.68611777,3468.5,3468.4,0.0108313]
[1721155358320,13.20435825,3468.5,3468.4,0.0108313]
[1721155358781,15.54175825,3468.5,3468.4,0.0108313]
[1721155358958,18.04328547,3468.5,3468.4,0.0108313]
[1721155359561,12.65866825,3468.5,3468.4,0.0108313]
[1721155360066,14.77614557,3468.5,3468.4,0.0108313]
[1721155360272,12.65866825,3468.5,3468.4,0.0108313]
[1721155362366,15.16030907,3468.5,3468.4,0.0108313]
[1721155362567,12.65866825,3468.5,3468.4,0.0108313]
[1721155362981,18.04339907,3468.5,3468.4,0.0108313]
[1721155363152,15.54175825,3468.5,3468.4,0.0108313]
[1721155363661,15.16026588,3468.5,3468.4,0.0108313]
[1721155363859,12.65866825,3468.5,3468.4,0.0108313]
[1721155364873,9.77557825,3468.5,3468.4,0.0108313]
[1721155365079,9.24049,3468.5,3468.4,0.0108313]
[1721155365239,11.35780288,3468.5,3468.4,0.0108313]
[1721155365570,12.12358,3468.5,3468.4,0.0108313]
[1721155367883,6.13736328,3468.5,3468.4,0.0108313]
[1721155368043,4.02,3468.5,3468.4,0.0108313]
[1721155369743,9.02054231,3468.5,3468.4,0.0108313]
[1721155370094,9.02056982,3468.5,3468.4,0.0108313]
[1721155370257,6.90309,3468.5,3468.4,0.0108313]
[1721155370458,9.02056982,3468.5,3468.4,0.0108313]
[1721155371380,9.02064616,3468.5,3468.4,0.0108313]
[1721155372358,12.9579491,3468.5,3468.4,0.0108313]
[1721155372562,13.72348294,3468.5,3468.4,0.0108313]
[1721155373478,11.90381774,3468.5,3468.4,0.0108313]
[1721155373677,11.90381909,3468.5,3468.4,0.0108313]
[1721155373982,11.90377663,3468.5,3468.4,0.0108313]
[1721155374288,9.78618,3468.5,3468.4,0.0108313]
[1721155374786,11.90383173,3468.5,3468.4,0.0108313]
[1721155375776,9.78618,3468.5,3468.4,0.0108313]
[1721155376283,11.24600006,3468.5,3468.4,0.0108313]
[1721155378881,13.71710006,3468.5,3468.4,0.0108313]
[1721155379086,16.21862067,3468.5,3468.4,0.0108313]
[1721155379399,13.71710006,3468.5,3468.4,0.0108313]
[1721155379587,16.21803248,3468.5,3468.4,0.0108313]
[1721155380390,19.10112248,3468.5,3468.4,0.0108313]
[1721155381002,16.60019006,3468.5,3468.4,0.0108313]
[1721155381602,13.71710006,3468.5,3468.4,0.0108313]
[1721155381979,9.78618,3468.5,3468.4,0.0108313]
[1721155382302,11.90325107,3468.5,3468.4,0.0108313]
[1721155382513,11.90341646,3468.5,3468.4,0.0108313]
[1721155382923,6.90309,3468.5,3468.4,0.0108313]
[1721155384016,5.88309,3468.5,3468.4,0.0108313]
[1721155384224,6.90309,3468.5,3468.4,0.0108313]
[1721155386429,9.02032646,3468.5,3468.4,0.0108313]
[1721155388407,6.90309,3468.5,3468.4,0.0108313]
[1721155392226,7.8817,3468.5,3468.4,0.0108313]
[1721155392401,10.76479,3468.5,3468.4,0.0108313]
[1721155392598,13.2684105,3468.5,3468.4,0.0108313]
[1721155392805,10.76479,3468.5,3468.4,0.0108313]
[1721155393706,13.64788,3468.5,3468.4,0.0108313]
[1721155397198,9.78618,3468.5,3468.4,0.0108313]
[1721155397399,12.29090889,3468.5,3468.4,0.0108313]
[1721155398705,9.78618,3468.5,3468.4,0.0108313]
[1721155399736,9.78618,3468.5,3467.0,2.2678]
[1721155399737,2.88343,3468.1,3467.0,2.2678]
[1721155399956,1.02,3467.1,3467.0,2.2678]
[1721155400186,2.83760475,3467.1,3467.0,2.2678]
[1721155400468,1.02,3467.1,3467.0,2.2678]
[1721155400637,2.83760475,3467.1,3467.0,2.2678]
[1721155401551,2.83655381,3467.1,3467.0,2.2678]
[1721155401758,1.02,3467.1,3467.0,2.2678]
[1721155405202,2.83548213,3467.1,3466.4,2.88477]
[1721155405346,1.02,3466.9,3466.7,2.485]
[1721155408701,1.02,3466.9,3466.5,0.576965]
[1721155408702,1.02,3466.9,3466.2,2.485]
[1721155408861,1.02,3466.6,3466.2,2.485]
[1721155409193,1.02,3466.6,3466.2,3.310524]
[1721155410369,1.02,3466.8,3466.2,6.195484]
[1721155411425,3.0,3467.1,3466.5,2.88473]
[1721155411693,1.02,3467.2,3466.6,5.15436]
[1721155412010,1.02,3467.2,3466.7,3.74612676]
[1721155412302,4.02,3467.6,3466.9,2.4975]
[1721155412468,3.0,3467.5,3466.9,5.38192]
[1721155412676,1.02,3467.4,3467.0,0.6185829]
[1721155413903,1.02,3467.2,3467.0,0.6185829]
[1721155414411,3.0,3467.5,3467.0,0.6185829]
[1721155414412,3.0,3467.5,3467.1,2.3969]
[1721155414617,1.02,3467.4,3467.1,5.2811]
[1721155415323,2.88384,3467.6,3466.5,2.88467]
[1721155415524,1.02,3467.0,3466.6,2.88466]
[1721155416087,1.02,3467.0,3466.7,2.88458]
[1721155416325,1.02,3467.0,3466.6,2.88467]
[1721155416730,1.02,3467.0,3466.3,5.28178]
[1721155416731,1.02,3466.8,3466.3,2.3969]
[1721155416886,1.02,3466.8,3466.3,2.7191424]
[1721155417091,1.02,3467.0,3466.5,2.88474]
[1721155417690,1.02,3467.0,3466.3,5.6040524]
[1721155417910,1.02,3466.8,3466.3,5.6039924]
[1721155418103,1.02,3466.8,3466.4,2.88483]
[1721155418313,3.0,3467.2,3466.4,3.73371224]
[1721155419189,5.88417,3467.2,3466.4,3.73371224]
[1721155420934,5.88417,3467.2,3466.4,0.84888224]
[1721155421131,5.88417,3467.2,3466.3,2.3969]
[1721155421333,2.8843,3467.1,3466.3,2.3969]
[1721155422752,3.0,3467.0,3466.3,2.3969]
[1721155423050,2.88442,3466.9,3466.3,2.3969]
[1721155426796,3.0,3467.0,3466.3,2.3969]
[1721155427509,5.88434,3467.0,3466.3,2.3969]
[1721155427896,3.0,3467.0,3466.3,5.80995]
[1721155428128,2.4616,3467.2,3466.3,5.80995]
[1721155428129,8.34577,3467.2,3466.3,5.80995]
[1721155428788,3.0,3467.2,3466.4,2.88482]
[1721155428994,3.0,3467.4,3466.4,2.94251177]
[1721155429234,4.8126211,3467.5,3466.8,2.88448]
[1721155429532,3.0,3467.4,3466.8,2.88448]
[1721155430031,1.8126211,3467.6,3466.7,2.3901]
[1721155430270,4.8126211,3467.6,3466.7,2.3901]
[1721155430472,1.8126211,3467.4,3466.7,2.3901]
[1721155430648,4.8126211,3467.4,3466.7,2.3901]
[1721155430846,1.8126211,3467.3,3466.7,2.3901]
[1721155431154,4.8126211,3467.3,3466.7,2.3901]
[1721155431354,1.8126211,3467.3,3466.7,2.3901]
[1721155431739,1.8126211,3467.3,3466.3,5.70768]
[1721155431740,2.2791,3467.3,3466.3,5.70768]
[1721155432074,1.81330029,3467.2,3466.3,5.70768]
[1721155432275,7.69749029,3467.2,3466.3,8.59252]
[1721155432444,7.69749029,3467.2,3466.4,0.859252]
[1721155433574,3.0,3467.2,3466.8,2.3098]
[1721155433737,4.81330029,3467.5,3466.8,2.3098]
[1721155433934,3.0,3467.5,3466.8,3.117684]
[1721155434150,4.81330029,3467.5,3466.8,3.117684]
[1721155434839,3.0,3467.5,3466.8,3.117684]
[1721155435036,1.81400967,3467.5,3466.8,3.117684]
[1721155435355,4.81400967,3467.5,3466.8,3.117684]
[1721155435564,4.81400967,3467.5,3466.8,6.002184]
[1721155436337,2.88416,3467.3,3466.4,0.859252]
[1721155436543,4.81400967,3467.2,3466.4,0.859252]
[1721155436939,3.0,3467.2,3466.5,2.88473]
[1721155439698,1.81472863,3467.2,3466.5,3.7827742]
[1721155439849,4.81472863,3467.3,3466.5,3.7827742]
[1721155440261,3.0,3467.3,3466.5,3.7827742]
[1721155440451,1.81472863,3467.3,3466.6,0.90192342]
[1721155440655,3.0,3467.3,3466.8,2.8845]
[1721155440960,4.81472863,3467.3,3466.8,2.8845]
[1721155441157,1.81472863,3467.3,3466.8,2.8845]
[1721155441354,1.81556782,3467.3,3466.8,2.8845]
[1721155441561,4.81556782,3467.5,3466.8,3.79463234]
[1721155441757,1.81556782,3467.5,3466.8,3.79463234]
[1721155442185,4.81556782,3467.6,3466.8,3.79463234]
[1721155442388,1.81556782,3467.5,3466.8,3.79457234]
[1721155442548,4.81556782,3467.5,3466.9,2.88441]
[1721155442756,1.81556782,3467.5,3467.0,0.91091823]
[1721155442964,1.81556782,3467.5,3467.0,3.79524823]
[1721155443159,1.81556782,3467.6,3467.2,2.4153]
[1721155443392,2.11816246,3467.9,3467.2,2.4153]
[1721155443614,1.81556782,3468.1,3467.2,2.4153]
[1721155443817,1.81556782,3468.1,3467.6,2.88381]
[1721155444099,1.81556782,3468.2,3467.4,2.88392]
[1721155444303,4.56816246,3468.4,3467.4,2.88392]
[1721155444304,1.81556782,3468.1,3467.4,2.88392]
[1721155444510,1.81641652,3468.1,3467.4,2.88392]
[1721155444666,1.81641652,3467.9,3467.3,2.88404]
[1721155444864,1.81641652,3468.0,3467.3,3.413974]
[1721155445332,1.81641652,3468.0,3467.4,2.884]
[1721155445661,1.81641652,3468.1,3467.4,2.884]
[1721155447705,1.81492871,3468.1,3467.4,2.884]
[1721155448260,1.81492871,3468.1,3467.3,0.529934]
[1721155448492,7.69828871,3468.2,3467.3,3.414004]
[1721155448671,1.81492871,3468.1,3467.3,3.414004]
[1721155449199,7.69828871,3468.2,3467.3,3.414004]
[1721155449388,1.81492871,3468.1,3467.3,3.414004]
[1721155450512,7.69828871,3468.2,3467.4,2.88399]
[1721155450817,7.69733369,3468.2,3467.5,2.4107]
[1721155451014,4.81397369,3468.2,3467.5,2.4107]
[1721155451680,1.81397369,3468.7,3467.8,2.3272]
[1721155451874,4.26627369,3469.0,3468.0,2.88348]
[1721155452076,2.4523,3469.0,3468.0,2.88348]
[1721155452384,0.71488437,3468.9,3468.2,2.88328]
[1721155452605,0.71488437,3468.9,3468.1,2.88335]
[1721155452789,0.71488437,3468.9,3468.3,2.88322]
[1721155453190,3.71488437,3468.9,3468.3,2.88322]
[1721155453395,0.71488437,3468.9,3468.3,2.88322]
[1721155453611,3.0,3468.8,3468.3,2.88322]
[1721155453915,3.0,3468.8,3468.2,2.88331]
[1721155454131,3.0,3468.8,3468.1,2.8834]
[1721155454132,0.61671844,3468.8,3468.1,2.8834]
[1721155454590,0.61671844,3468.8,3468.2,2.88333]
[1721155455493,2.4398,3468.7,3467.6,2.8838]
[1721155455698,2.4398,3468.7,3467.7,2.88367]
[1721155455699,0.4734264,3468.6,3467.7,2.88367]
[1721155456108,3.4734264,3468.6,3467.7,2.88367]
[1721155457981,3.4734264,3468.6,3467.8,2.88365]
[1721155459721,3.4734264,3468.6,3467.6,2.88377]
[1721155460026,0.71488437,3468.5,3467.6,2.88377]
[1721155461360,3.4734264,3468.6,3468.0,2.88345]
[1721155461361,3.0,3468.6,3468.0,2.88345]
[1721155461539,2.3638,3469.0,3467.9,2.3775]
[1721155461859,2.3638,3469.0,3468.2,2.88325]
[1721155461860,3.0,3468.9,3468.2,2.88325]
[1721155462013,2.3638,3469.0,3468.3,2.8832]
[1721155462205,2.3724,3469.3,3468.4,2.8831]
[1721155462411,0.825472,3469.2,3468.4,2.8831]
[1721155462610,3.825472,3469.2,3468.4,5.76619]
[1721155462823,0.825472,3469.2,3468.5,2.88306]
[1721155463058,2.3724,3469.7,3468.8,2.88282]
[1721155463225,2.3724,3469.7,3468.9,2.88275]
[1721155464428,8.25449,3469.7,3468.7,2.88292]
[1721155464743,2.88223,3469.6,3468.6,2.4261]
[1721155464945,1.113672,3469.5,3468.6,5.30904]
[1721155465111,1.113672,3469.5,3468.6,2.4261]
[1721155466360,1.113672,3469.5,3468.7,2.88292]
[1721155467110,3.0,3469.6,3468.7,2.88292]
[1721155467314,2.3724,3469.7,3468.7,2.94057176]
[1721155467545,2.3724,3469.7,3468.7,2.88292]
[1721155467818,2.3724,3469.7,3468.9,2.88275]
[1721155468058,3.486037,3469.7,3468.9,2.88275]
[1721155468269,3.0,3469.6,3468.9,2.88275]
[1721155469114,3.0,3469.6,3468.7,5.76577]
[1721155469340,3.0,3469.6,3468.8,2.8828]
[1721155470117,3.0,3469.6,3468.6,5.3091]
[1721155470321,3.57365221,3469.5,3468.6,2.4261]
[1721155470518,3.0,3469.4,3468.6,5.3091]
[1721155472726,3.0,3469.4,3468.4,2.88313]
[1721155473080,2.4064,3469.3,3468.4,2.8831]
[1721155473274,2.4064,3469.3,3468.4,0.52335]
[1721155473480,2.4064,3469.3,3468.2,2.3504]
[1721155473630,2.4064,3469.3,3468.5,2.88306]
[1721155476090,2.4064,3469.3,3468.6,2.883]
[1721155477663,2.4064,3469.3,3468.4,5.76622]
[1721155477995,2.4064,3469.3,3467.6,5.31629]
[1721155477996,2.4018,3468.7,3467.6,5.31629]
[1721155478175,2.4018,3468.7,3467.8,2.88362]
[1721155478176,5.28473,3468.7,3467.8,2.88362]
[1721155478481,3.0,3468.6,3467.8,2.88362]
[1721155478998,3.0,3468.6,3467.6,5.31629]
[1721155479297,3.0,3468.6,3467.6,5.847919]
[1721155479461,3.0,3468.6,3467.8,2.88361]
[1721155479784,3.0,3468.6,3467.9,2.88358]
[1721155479992,5.4018,3468.7,3467.9,2.88358]
[1721155480292,2.4018,3468.7,3467.9,2.88358]
[1721155481519,2.4018,3468.7,3467.9,3.7566649]
[1721155482119,5.4018,3468.7,3467.9,3.7566649]
[1721155482306,5.4018,3468.7,3467.9,2.88352]
[1721155482616,5.4018,3468.7,3468.0,2.8835]
[1721155482917,5.4018,3468.7,3467.6,2.964129]
[1721155482918,3.0,3468.9,3468.3,2.8832]
[1721155483212,3.0,3468.9,3467.7,5.92274]
[1721155483213,3.0,3468.6,3468.1,2.88335]
[1721155483422,3.0,3468.9,3468.2,2.88332]
[1721155483721,2.4115,3469.0,3468.2,2.88332]
[1721155483894,3.31851099,3469.0,3468.2,2.88327]
[1721155484093,3.31851099,3469.0,3468.2,5.76653]
[1721155484094,3.0,3468.9,3468.2,5.76653]
[1721155484622,5.88276,3468.9,3468.0,2.8835]
[1721155484779,6.78077822,3468.9,3468.0,2.8835]
[1721155486413,3.89801822,3468.9,3468.1,2.88337]
[1721155486642,3.0,3468.9,3468.2,2.88333]
[1721155486787,2.4115,3469.0,3468.4,2.88316]
[1721155486982,2.4115,3469.0,3468.2,2.88327]
[1721155487227,2.4115,3469.0,3468.3,2.8832]
[1721155487526,3.529146,3469.0,3468.3,2.8832]
[1721155487684,3.0,3468.9,3468.4,2.88316]
[1721155492239,3.0,3468.9,3468.2,2.88333]
[1721155492403,3.0,3468.9,3468.2,2.88327]
[1721155492601,3.0,3468.9,3468.4,2.88316]
[1721155492844,2.4115,3469.0,3468.4,2.88316]
[1721155493136,3.0,3469.2,3468.6,2.88298]
[1721155493443,4.2030079,3469.3,3468.6,2.88298]
[1721155493735,3.0,3469.2,3468.6,2.88298]
[1721155494138,3.0,3469.2,3468.5,2.88306]
[1721155494728,3.0,3469.2,3468.6,2.883]
[1721155495125,4.8138079,3469.2,3468.6,2.883]
[1721155495514,4.81452068,3469.2,3468.6,2.883]
[1721155495721,4.81452071,3469.2,3468.6,2.883]
[1721155497114,1.81452071,3469.1,3468.4,2.8831]
[1721155497315,1.81452071,3469.1,3468.5,2.88304]
[1721155498021,1.81452071,3469.1,3468.4,2.8831]
[1721155498434,2.4537,3469.0,3468.2,2.88331]
[1721155498611,7.26822071,3469.0,3468.2,2.88331]
[1721155498806,1.81565163,3468.9,3468.2,2.88331]
[1721155499016,4.81565163,3468.9,3468.2,2.88331]
[1721155500229,4.81565163,3468.9,3468.2,2.88328]
[1721155500431,4.81565163,3468.9,3468.0,2.88346]
[1721155500432,5.40037969,3468.9,3468.0,2.88346]
[1721155500632,5.40037969,3468.9,3467.4,13.29499]
[1721155500633,2.4221,3468.4,3467.4,7.37]
[1721155500833,2.4221,3468.4,3466.7,3.0]
[1721155500834,4.69891163,3468.3,3467.5,2.8839]
[1721155501034,2.88326,3468.3,3467.5,2.8839]
[1721155501345,3.0,3468.2,3467.5,2.8839]
[1721155501752,3.0,3468.3,3467.5,3.460703]
[1721155501954,3.0,3468.3,3467.7,2.8837]
[1721155502241,2.4221,3468.4,3467.7,2.8837]
[1721155502445,5.4221,3468.4,3467.7,2.8837]
[1721155503909,5.4221,3468.4,3467.5,5.76774]
[1721155504148,5.4221,3468.4,3467.6,2.88382]
[1721155504352,3.89535751,3468.3,3467.3,3.18454246]
[1721155504556,5.88335,3468.2,3467.3,3.18454246]
[1721155504713,2.4633,3468.0,3467.3,0.30052246]
[1721155504912,2.4633,3468.0,3467.1,2.88418]
[1721155505125,2.4633,3468.0,3467.2,2.88409]
[1721155505321,5.34682,3468.0,3467.0,2.88428]
[1721155505580,7.69874364,3467.9,3466.8,5.32933]
[1721155505864,10.58241364,3467.9,3466.9,2.88441]
[1721155506087,1.81514364,3467.8,3466.9,2.88441]
[1721155506253,10.58241364,3467.9,3466.9,2.88441]
[1721155506579,6.003405,3467.8,3466.7,2.88452]
[1721155506901,2.88378,3467.7,3466.7,2.88452]
[1721155507057,7.69892364,3467.7,3466.7,2.88452]
[1721155507254,7.69892364,3467.7,3466.4,2.2591]
[1721155507255,2.4603,3467.6,3466.4,2.2591]
[1721155507460,2.4603,3467.6,3466.4,2.88477]
[1721155507461,2.88407,3467.4,3466.4,2.88477]
[1721155507659,5.88409,3467.3,3466.4,2.88477]
[1721155509603,5.88409,3467.3,3466.2,2.885]
[1721155509604,2.88417,3467.2,3466.2,2.885]
[1721155509909,2.88417,3467.2,3465.7,1.81518863]
[1721155509910,0.88533,3467.0,3465.7,1.81518863]
[1721155510200,2.88448,3466.9,3465.9,2.88524]
[1721155510431,3.0,3466.8,3465.9,2.88524]
[1721155511471,5.88452,3466.8,3465.7,4.70057863]
[1721155511685,6.31227236,3466.8,3465.7,4.70057863]
[1721155512029,6.31227236,3466.8,3465.7,2.88539]
[1721155512191,2.88459,3466.7,3465.7,2.88539]
[1721155512524,3.0,3466.6,3465.8,2.88533]
[1721155513081,3.0,3466.6,3465.6,2.88544]
[1721155513281,3.0,3466.6,3465.6,0.81651]
[1721155513504,2.3249,3466.5,3465.6,0.81651]
[1721155513725,5.20965,3466.5,3465.6,0.81651]
[1721155513882,3.0,3466.4,3465.6,0.81651]
[1721155514730,3.0,3466.4,3465.6,2.88545]
[1721155515219,3.0,3466.4,3465.5,2.88558]
[1721155515595,3.0,3466.4,3465.6,2.88549]
[1721155515796,2.912,3466.4,3465.6,2.88549]
[1721155517198,2.912,3466.4,3465.7,2.8854]
[1721155517395,2.88444,3466.9,3466.0,2.8851]
[1721155517396,2.2507,3466.9,3466.0,2.8851]
[1721155517841,5.2507,3466.9,3466.0,2.8851]
[1721155519391,8.13512,3466.9,3466.0,2.8851]
[1721155519598,2.88451,3466.8,3466.0,0.37649753]
[1721155519833,2.88451,3466.8,3465.4,0.23941]
[1721155519834,2.4443,3466.6,3465.7,2.88535]
[1721155520045,5.32897,3466.6,3465.7,2.88535]
[1721155520336,2.4443,3466.6,3465.4,3.12504]
[1721155520542,2.88475,3466.5,3465.5,3.437464]
[1721155520709,3.0,3466.4,3465.6,2.88544]
[1721155521413,3.0,3466.4,3465.7,2.88541]
[1721155522425,8.32904,3466.6,3465.7,2.88541]
[1721155522609,2.88476,3466.5,3465.8,0.6322874]
[1721155522941,3.0,3466.4,3465.8,0.6322874]
[1721155523538,8.32897,3466.6,3465.8,0.6322874]
[1721155523904,3.0,3466.6,3466.2,2.88497]
[1721155524101,3.0,3466.6,3466.3,0.288497]
[1721155524345,2.2683,3467.1,3466.3,0.288497]
[1721155524748,2.2683,3467.1,3466.1,2.88508]
[1721155524749,5.15255,3467.1,3466.1,2.88508]
[1721155524965,3.0,3467.0,3466.1,2.88508]
[1721155525179,5.88439,3467.0,3465.9,2.3412]
[1721155525351,2.88469,3466.6,3465.7,3.18579243]
[1721155525550,3.0,3466.5,3465.7,2.88541]
[1721155526047,2.88461,3466.7,3465.7,2.88541]
[1721155526253,2.4714,3466.5,3465.7,2.88541]
[1721155526648,2.4714,3466.5,3465.8,2.88533]
[1721155526978,2.4714,3466.5,3465.6,2.88544]
[1721155527143,2.4714,3466.5,3465.5,3.437474]
[1721155527144,5.4714,3466.5,3465.7,2.88541]
[1721155527343,5.4714,3466.5,3465.8,2.88533]
[1721155527744,2.4714,3466.5,3465.8,2.88533]
[1721155528673,5.4714,3466.8,3466.0,2.88516]
[1721155528998,3.0,3466.7,3466.0,2.88516]